fUSD/lending_fUSD_20240123
["ID","MTS","AMOUNT","RATE_DAILY","PERIOD"]
[312586971,1706033441137,-155.72803693,0.00022999,2]
[312586972,1706033441147,-3299.43555455,0.00022999,2]
[312586973,1706033441156,-253.21630641,0.00022999,2]
[312586974,1706033441165,-500.0,0.00022999,2]
[312586975,1706033441175,-293.92719068,0.00022999,2]
[312586976,1706033441184,-336.96407024,0.00022999,2]
[312586977,1706033441193,-500.0,0.00022999,2]
[312586978,1706033441203,-500.0,0.00022999,2]
[312586979,1706033441213,-500.0,0.00022999,2]
[312586980,1706033441222,-500.0,0.00022999,2]
[312586981,1706033441231,-436.90293151,0.00022999,2]
[312586982,1706033441241,-500.0,0.00022999,2]
[312586983,1706033441250,-500.0,0.00022999,2]
[312586984,1706033441259,-527.90923369,0.00022999,2]
[312586985,1706033441269,-500.0,0.00022999,2]
[312586986,1706033441278,-500.0,0.00022999,2]
[312586987,1706033441287,-500.0,0.00022999,2]
[312586988,1706033441297,-500.0,0.00022999,2]
[312586989,1706033441306,-500.0,0.00022999,2]
[312586990,1706033441315,-500.0,0.00022999,2]
[312586991,1706033441325,-500.0,0.00022999,2]
[312586992,1706033441334,-500.0,0.00022999,2]
[312586993,1706033441343,-500.0,0.00022999,2]
[312586994,1706033441353,-500.0,0.00022999,2]
[312586995,1706033441362,-500.0,0.00022999,2]
[312586996,1706033441371,-500.0,0.00022999,2]
[312586997,1706033441380,-500.0,0.00022999,2]
[312586998,1706033441390,-500.0,0.00022999,2]
[312586999,1706033441399,-500.0,0.00022999,2]
[312587000,1706033441408,-500.0,0.00022999,2]
[312587001,1706033441417,-500.0,0.00022999,2]
[312587002,1706033441427,-500.0,0.00022999,2]
[312587003,1706033441435,-500.0,0.00022999,2]
[312587004,1706033441444,-500.0,0.00022999,2]
[312587005,1706033441452,-500.0,0.00022999,2]
[312587006,1706033441463,-500.0,0.00022999,2]
[312587007,1706033441472,-500.0,0.00022999,2]
[312587008,1706033441481,-500.0,0.00022999,2]
[312587009,1706033441490,-500.0,0.00022999,2]
[312587010,1706033441499,-500.0,0.00022999,2]
[312587011,1706033441508,-500.0,0.00022999,2]
[312587012,1706033441517,-500.0,0.00022999,2]
[312587013,1706033441526,-500.0,0.00022999,2]
[312587014,1706033441535,-500.0,0.00022999,2]
[312587015,1706033441544,-356.43772403,0.00022999,2]
[312587016,1706033441553,-500.0,0.00022999,2]
[312587017,1706033441562,-500.0,0.00022999,2]
[312587018,1706033441572,-500.0,0.00022999,2]
[312587019,1706033441581,-300.0,0.00022999,2]
[312587020,1706033441590,-300.0,0.00022999,2]
[312587021,1706033441599,-300.0,0.00022999,2]
[312587022,1706033441608,-300.0,0.00022999,2]
[312587023,1706033441617,-300.0,0.00022999,2]
[312587024,1706033441627,-300.0,0.00022999,2]
[312587025,1706033441636,-300.0,0.00022999,2]
[312587026,1706033441646,-307570.10475092,0.00023,2]
[312587027,1706033441655,-336.45922871,0.00023,20]
[312587028,1706033441664,-1619442.62250425,0.00023,2]
[312587033,1706033442975,-216.48921933,0.00021728,2]
[312587035,1706033442984,-216.48921933,0.00021728,2]
[312587036,1706033442993,-216.48921933,0.00021728,2]
[312587037,1706033443002,-204.45519383,0.0002249,3]
[312587038,1706033443011,-150.0,0.00022829,2]
[312587039,1706033443020,-150.0,0.00022851,2]
[312587040,1706033443029,-150.0,0.00022854,2]
[312587041,1706033443039,-150.0,0.00022882,2]
[312587043,1706033443048,-150.0,0.0002291,2]
[312587045,1706033443057,-150.0,0.00022916,2]
[312587046,1706033443066,-150.0,0.00022917,2]
[312587047,1706033443075,-66.07714818,0.00022932,2]
[312587091,1706033443492,-83.92285182,0.00022932,2]
[312587092,1706033443502,-150.0,0.00022935,2]
[312587093,1706033443512,-150.0,0.00022958,2]
[312587094,1706033443522,-150.0,0.00022963,2]
[312587095,1706033443531,-150.0,0.0002297,2]
[312587096,1706033443541,-150.0,0.00022971,2]
[312587097,1706033443550,-150.0,0.0002298,2]
[312587098,1706033443559,-127.97656025,0.00023,2]
[312587099,1706033443573,-1019.917125,0.00023,2]
[312587100,1706033443677,157.7420297,0.00021699,2]
[312587101,1706033443988,-989.257,0.00023,2]
[312587104,1706033446500,-14.40998295,0.00022878,2]
[312587107,1706033453505,142.40675029,0.00020468,2]
[312587108,1706033453526,416.96193952,0.00020468,2]
[312587109,1706033460383,192.90231929,0.00020698,2]
[312587110,1706033460631,155.0,0.00020698,2]
[312587111,1706033468118,733.52716987,0.00021,2]
[312587112,1706033553847,210.0,0.00021137,2]
[312587114,1706033649158,79.42552901,0.00021725,2]
[312587115,1706033649181,2000.0,0.00021725,2]
[312587116,1706033649202,1824.07447099,0.00021725,2]
[312587117,1706033657984,175.92552901,0.00021725,2]
[312587118,1706033658006,516.56447099,0.00021725,2]
[312587119,1706033681674,159.8,0.00021715,2]
[312587120,1706033713296,790.08,0.00021635,2]
[312587121,1706033717280,170.75,0.00021635,2]
[312587122,1706033770617,190.97,0.00021622,2]
[312587123,1706033771489,171.83552901,0.00021644,2]
[312587124,1706033771510,1934.66447099,0.00021644,2]
[312587125,1706033797710,65.33552901,0.00021597,2]
[312587126,1706033797732,184.66447099,0.00021597,2]
[312587127,1706033854338,165.82,0.00021643,2]
[312587128,1706033949586,1649.51552901,0.00021648,2]
[312587129,1706033949607,798.10447099,0.00021648,2]
[312587130,1706033966517,374.3,0.00019762,2]
[312587131,1706034019590,827.59552901,0.00021661,2]
[312587132,1706034019610,1172.40447099,0.00021661,2]
[312587133,1706034036556,160.0,0.00019762,2]
[312587134,1706034037817,198.15422954,0.00019762,2]
[312587135,1706034039340,220.5065332,0.00019762,2]
[312587136,1706034039378,248.93476627,0.00019762,2]
[312587137,1706034039399,286.57523569,0.00019762,2]
[312587138,1706034040205,225.222887,0.00019762,2]
[312587139,1706034041132,207.70154514,0.00019762,2]
[312587140,1706034042618,155.0,0.00019762,2]
[312587141,1706034043548,559.88627078,0.00020198,2]
[312587142,1706034045330,235.10419243,0.00019762,2]
[312587143,1706034046118,155.0,0.00019762,2]
[312587144,1706034049879,155.0,0.00019762,2]
[312587145,1706034049983,20.50986896,0.00019762,2]
[312587146,1706034050005,198.17361653,0.00019762,2]
[312587147,1706034052676,155.31624059,0.00020425,2]
[312587148,1706034060655,155.21885268,0.00019762,2]
[312587149,1706034063332,132.97777851,0.00019762,2]
[312587150,1706034063357,87.45765315,0.00019762,2]
[312587151,1706034065319,235.02188865,0.00019762,2]
[312587152,1706034218761,546.93748736,0.00019762,5]
[312587153,1706034219706,480.05671494,0.00020518,5]
[312587154,1706034374568,150.0,0.0002,2]
[312587155,1706034420984,396.446525,0.00020983,2]
[312587156,1706034518730,406.8,0.00019181,2]
[312587182,1706034632362,-155.0,0.00021049,2]
[312587183,1706034632372,-767.43247508,0.00021049,2]
[312587184,1706034632381,-640.13,0.0002105,2]
[312587185,1706034632391,-529.84927836,0.00021074,2]
[312587186,1706034632400,-501.92146411,0.00021075,2]
[312587187,1706034632409,-211.90474558,0.00021076,2]
[312587188,1706034632419,-1144.41325018,0.00021076,2]
[312587189,1706034632432,-351.48000001,0.00021076,2]
[312587190,1706034632715,-318.01504645,0.00021076,2]
[312587191,1706034632727,-340.325996,0.00021076,2]
[312587192,1706034632738,-1002.12804557,0.00021076,2]
[312587193,1706034632765,-1120.42071201,0.00021076,2]
[312587194,1706034632774,-45.19728799,0.00021077,2]
[312587195,1706034632798,-1001.20244031,0.00021077,2]
[312587196,1706034632807,-150.0,0.00021077,2]
[312587197,1706034632816,-150.0,0.00021077,2]
[312587198,1706034632825,-2934.97670151,0.00021078,2]
[312587199,1706034632836,-1177.7496159,0.00021078,2]
[312587200,1706034632848,-1270.66,0.00021078,2]
[312587201,1706034632891,-202.61368259,0.00021078,2]
[312587202,1706034632900,-266.2165356,0.00021078,2]
[312587203,1706034632910,-23880.0,0.00021088,2]
[312587204,1706034632919,-2039.68,0.00021095,2]
[312587205,1706034632928,-312.44,0.00021095,2]
[312587206,1706034632938,-7462.24,0.00021095,2]
[312587207,1706034632951,-1551.96,0.00021136,2]
[312587208,1706034632961,-250.0,0.00021277,2]
[312587209,1706034632971,-165.89,0.00021307,2]
[312587210,1706034632981,-233.3,0.00021307,2]
[312587211,1706034632991,-367.93,0.00021399,2]
[312587212,1706034633001,-200.0,0.00021435,2]
[312587213,1706034633011,-406.8,0.00021445,2]
[312587214,1706034633022,-202.0,0.00021517,2]
[312587215,1706034633033,-218.48493834,0.0002152,2]
[312587216,1706034633045,-218.48493834,0.00021593,2]
[312587217,1706034633057,-1159.64064638,0.00021615,2]
[312587218,1706034633067,-1685.2,0.00021644,2]
[312587219,1706034633077,-218.48493834,0.00021665,2]
[312587220,1706034633086,-218.48493834,0.00021738,2]
[312587221,1706034633096,-218.48493834,0.00021811,2]
[312587222,1706034633106,-326.94,0.00021881,2]
[312587223,1706034633115,-218.48493834,0.00021883,2]
[312587224,1706034633126,-250.0,0.00021918,2]
[312587225,1706034633137,-326.94,0.00021941,2]
[312587226,1706034633149,-218.48493834,0.00021956,2]
[312587227,1706034633158,-326.94,0.00022001,2]
[312587228,1706034633168,-218.48493834,0.00022028,2]
[312587229,1706034633179,-326.94,0.00022061,2]
[312587230,1706034633189,-1438.94933645,0.00022078,2]
[312587231,1706034633198,-218.48493834,0.00022101,2]
[312587232,1706034633207,-326.94,0.00022121,2]
[312587233,1706034633217,-798.71625889,0.00022141,2]
[312587234,1706034633226,-218.48493834,0.00022174,2]
[312587235,1706034633235,-326.94,0.00022181,2]
[312587236,1706034633243,-696.31,0.00022197,2]
[312587237,1706034633253,-155.0,0.00022226,2]
[312587238,1706034633263,-150.99,0.00022226,2]
[312587239,1706034633273,-326.94,0.00022241,2]
[312587240,1706034633282,-218.48493834,0.00022246,2]
[312587241,1706034633291,-203.15166372,0.000223,3]
[312587242,1706034633299,-326.94,0.00022301,2]
[312587243,1706034633308,-2477.08702393,0.00022308,2]
[312587244,1706034633317,-7167.64,0.00022308,2]
[312587245,1706034633326,-499.99,0.00022308,2]
[312587246,1706034633336,-293.08,0.00022308,2]
[312587247,1706034633346,-218.48493834,0.00022319,2]
[312587248,1706034633355,-326.94,0.00022361,2]
[312587249,1706034633364,-218.48493834,0.00022392,2]
[312587250,1706034633374,-326.94,0.00022421,2]
[312587251,1706034633383,-1685.2,0.00022445,2]
[312587252,1706034633392,-218.48493834,0.00022464,2]
[312587253,1706034633401,-326.94,0.00022481,2]
[312587254,1706034633410,-218.48493834,0.00022537,2]
[312587255,1706034633420,-326.94,0.00022541,2]
[312587256,1706034633429,-9148.3567,0.00022568,2]
[312587257,1706034633438,-1315.89979849,0.00022568,2]
[312587258,1706034633449,-567.8862,0.00022596,2]
[312587259,1706034633458,-2061.8238,0.00022596,2]
[312587260,1706034633468,-473.8529,0.00022596,2]
[312587261,1706034633477,-326.94,0.00022601,2]
[312587262,1706034633486,-218.48493834,0.00022609,2]
[312587263,1706034633495,-238.32,0.00022655,2]
[312587264,1706034633505,-326.94,0.00022661,2]
[312587265,1706034633514,-407.30005052,0.00022667,2]
[312587266,1706034633523,-467978.1657,0.00022668,2]
[312587267,1706034633533,-251.3999,0.00022668,2]
[312587268,1706034633542,-218.48493834,0.00022682,2]
[312587269,1706034633551,-524.94850656,0.00022694,2]
[312587270,1706034633560,-1000.0,0.00022694,2]
[312587271,1706034633569,-155.00044001,0.00022694,2]
[312587272,1706034633578,-2622.16034741,0.00022694,2]
[312587273,1706034633587,-1068.27846556,0.00022695,2]
[312587274,1706034633597,-171.94541592,0.000227,2]
[312587275,1706034633606,-272.83707521,0.00022715,2]
[312587276,1706034633615,-288.55744756,0.00022715,2]
[312587277,1706034633624,-4653.26731427,0.00022715,2]
[312587278,1706034633633,-326.94,0.00022721,2]
[312587279,1706034633642,-2039.68,0.00022739,2]
[312587280,1706034633652,-218.48493834,0.00022755,2]
[312587281,1706034633661,-247.24074097,0.00022768,2]
[312587282,1706034633670,-11782.39319426,0.00022768,2]
[312587283,1706034633680,-281.28534164,0.00022768,2]
[312587284,1706034633689,-155.0,0.00022768,2]
[312587285,1706034633698,-326.94,0.00022781,2]
[312587286,1706034633707,-833.4232,0.00022785,2]
[312587287,1706034633717,-14910.0173,0.00022796,2]
[312587288,1706034633726,-19406.2375,0.00022796,2]
[312587289,1706034633735,-895413.8126595,0.00022799,2]
[312587290,1706034633745,-99427.0554,0.000228,2]
[312587291,1706034633754,-800.0,0.00022815,2]
[312587292,1706034633763,-800.0,0.00022816,2]
[312587293,1706034633773,-800.0,0.00022816,2]
[312587294,1706034633782,-800.0,0.00022816,2]
[312587295,1706034633791,-800.0,0.00022816,2]
[312587296,1706034633801,-218.48493834,0.00022827,2]
[312587297,1706034633810,-326.94,0.00022841,2]
[312587298,1706034633819,-1000.0,0.00022885,2]
[312587299,1706034633828,-572.1916,0.00022885,2]
[312587300,1706034633837,-6852.41765101,0.00022899,2]
[312587301,1706034633847,-218.48493834,0.000229,2]
[312587302,1706034633856,-55555.0,0.000229,2]
[312587303,1706034633865,-183.3723462,0.000229,6]
[312587304,1706034633874,-161.75423965,0.000229,2]
[312587305,1706034633883,-326.94,0.00022901,2]
[312587306,1706034633892,-326.94,0.00022961,2]
[312587307,1706034633901,-419.11443701,0.00022987,2]
[312587308,1706034633910,-155.22013602,0.00022997,2]
[312587309,1706034633919,-1485.51430148,0.00022997,2]
[312587310,1706034634162,-246.31239322,0.00022997,2]
[312587311,1706034634188,-1009.55503212,0.00022997,2]
[312587312,1706034634198,-376.78302695,0.00022997,2]
[312587313,1706034634207,-157.39865583,0.00022997,2]
[312587314,1706034634217,-332.77661456,0.00022997,2]
[312587315,1706034634227,-209.21422491,0.00022997,2]
[312587316,1706034634237,-207.78272895,0.00022997,2]
[312587317,1706034634247,-313.5325998,0.00022997,2]
[312587318,1706034634256,-400.0,0.00022997,2]
[312587319,1706034634265,-160.99807622,0.00022997,2]
[312587320,1706034634274,-1956.89182349,0.00022998,2]
[312587321,1706034634283,-1474.84336839,0.00022998,2]
[312587322,1706034634293,-155.5919666,0.00022998,2]
[312587323,1706034634302,-698.04764279,0.00022998,2]
[312587324,1706034634311,-6439.8794207,0.00022998,2]
[312587325,1706034634320,-4483.71812932,0.00022998,2]
[312587326,1706034634330,-1256.24889353,0.00022998,2]
[312587327,1706034634339,-204.38101367,0.00022998,2]
[312587328,1706034634348,-3445.88486767,0.00022998,2]
[312587329,1706034634356,-385.5449845,0.00022998,2]
[312587330,1706034634366,-206.73159676,0.00022998,2]
[312587331,1706034634375,-155.0,0.00022998,2]
[312587332,1706034634384,-3619.12864015,0.00022998,2]
[312587333,1706034634393,-1533.0,0.00022999,2]
[312587334,1706034634403,-3299.43555455,0.00022999,2]
[312587335,1706034634412,-1708.48443124,0.00022999,2]
[312587336,1706034634427,-575.17710851,0.00022999,2]
[312587337,1706034634438,-1282.02818207,0.00022999,2]
[312587338,1706034634450,-270.77655884,0.00022999,2]
[312587346,1706034638357,-2004.10187494,0.00022999,2]
[312587347,1706034638368,-4935.90812506,0.00022999,2]
[312587348,1706034638379,-447.84096721,0.00022999,2]
[312587349,1706034638413,-3031.30516848,0.00022999,2]
[312587350,1706034638425,-3704.41060687,0.00022999,2]
[312587351,1706034638437,-290.37546154,0.00022999,2]
[312587352,1706034638472,-1428.21897189,0.00022999,2]
[312587353,1706034638483,-331.99314566,0.00022999,2]
[312587354,1706034638494,-314.71521952,0.00022999,2]
[312587355,1706034638646,-58848.57633367,0.00022999,2]
[312587356,1706034638655,-934.1826191,0.00022999,2]
[312587357,1706034638665,-3299.43555455,0.00022999,2]
[312587358,1706034638675,-1588693.13484385,0.00023,2]
[312587359,1706034638684,-275573.85713271,0.00023,2]
[312587362,1706034638716,-1059.53492,0.00023,2]
[312587364,1706034638728,-518.38607866,0.00023,2]
[312587393,1706034640846,-263.703,0.00023,2]
[312587394,1706034640858,-4129.46494753,0.00023,2]
[312587395,1706034641013,-14452.08954118,0.00023,2]
[312587396,1706034641026,-1489.95371135,0.00023,2]
[312587397,1706034641037,-387.72733961,0.00023,2]
[312587398,1706034641556,-1311.43470725,0.00023,2]
[312587399,1706034641567,-2995.14041374,0.00023,2]
[312587419,1706034643405,-200.88840202,0.00022715,2]
[312587420,1706034643414,-4430.30490299,0.00023,2]
[312587421,1706034643427,-2567.10776758,0.00023,2]
[312587422,1706034643443,-39702.86375355,0.00023,2]
[312587423,1706034643456,-655.008965,0.00023,2]
[312587424,1706034643519,-16042.81911958,0.00023,2]
[312587425,1706034643663,-149.47486,0.00023,2]
[312587426,1706034643687,-1612.02209916,0.00023,2]
[312587427,1706034643699,-587.09626515,0.00023,2]
[312587428,1706034643723,-293.51421104,0.00023,2]
[312587453,1706034646485,-277.00956143,0.00022999,2]
[312587454,1706034646497,-488.439595,0.00022999,2]
[312587455,1706034646508,-210.64211697,0.00022999,2]
[312587456,1706034646518,-185.05109231,0.00022999,2]
[312587457,1706034646528,-499.2569425,0.00022999,2]
[312587458,1706034646537,-373.49267484,0.00023,2]
[312587459,1706034646550,-469.302,0.00023,2]
[312587460,1706034646599,-537.20532516,0.00023,2]
[312587461,1706034646608,-4917.7805345,0.00023,2]
[312587462,1706034646619,-879.2077365,0.00023,2]
[312587463,1706034646631,-2718.69916384,0.00023,2]
[312587464,1706034646643,-1210019.13030891,0.00023,2]
[312587465,1706034646672,-1296.14478647,0.00023,2]
[312587468,1706034647003,-943.6300854,0.00023,2]
[312587535,1706034795438,-150.27779663,0.00022885,15]
[312587536,1706034795459,-332.23220337,0.00023,20]
[312587537,1706034997010,-191.77,0.00021768,2]
[312587538,1706034997031,-521.34278386,0.00021775,2]
[312587539,1706034997053,-247.32726579,0.00021776,2]
[312587540,1706034997074,-2000.0,0.00021777,2]
[312587541,1706034997094,-6509.987,0.00021926,2]
[312587542,1706035041128,416.02,0.000199,2]
[312587543,1706035444991,202.0,0.00020349,2]
[312587544,1706035596557,395.21,0.00019557,2]
[312587545,1706035708515,200.0,0.00019459,2]
[312587546,1706035729041,181.06302207,0.0002,2]
[312587557,1706035831528,-202.0,0.00021332,2]
[312587558,1706035831540,-213.03901403,0.00021348,2]
[312587560,1706035831553,-408.66996556,0.00021348,2]
[312587561,1706035831649,-2378.29102041,0.00021348,2]
[312587562,1706035831660,-176.74,0.00021445,2]
[312587563,1706035831671,-1033.91,0.00021463,2]
[312587564,1706035831682,-250.0,0.00021463,2]
[312587565,1706035831693,-12410.16,0.00021463,2]
[312587566,1706035831704,-613.94,0.00021475,2]
[312587567,1706035831715,-2021.4,0.00021486,2]
[312587568,1706035831725,-1000.0,0.00021491,2]
[312587569,1706035831736,-158.21575888,0.00021518,2]
[312587570,1706035831746,-1930.01,0.00021644,2]
[312587571,1706035831757,-162.84,0.00021646,2]
[312587572,1706035831768,-162.84,0.00021772,2]
[312587573,1706035831779,-2218.5,0.00021772,2]
[312587574,1706035831789,-395.21,0.00021821,2]
[312587575,1706035831800,-2716.12,0.00021821,2]
[312587576,1706035831811,-499.99,0.00021821,2]
[312587577,1706035831821,-1485.17,0.00021821,2]
[312587578,1706035831831,-162.84,0.00021897,2]
[312587579,1706035831842,-250.0,0.00021918,2]
[312587580,1706035831852,-610.29126095,0.00021926,2]
[312587582,1706035831862,-162.84,0.00022022,2]
[312587584,1706035831873,-162.84,0.00022148,2]
[312587586,1706035831883,-150.99,0.00022164,2]
[312587589,1706035831895,-162.84,0.00022273,2]
[312587591,1706035831905,-174.26688179,0.00022308,3]
[312587593,1706035831915,-2477.08702393,0.00022308,2]
[312587595,1706035831925,-247.15421615,0.0002234,2]
[312587597,1706035831935,-162.84,0.00022398,2]
[312587599,1706035831945,-1930.01,0.00022445,2]
[312587601,1706035831956,-162.84,0.00022524,2]
[312587603,1706035831967,-2526.70299999,0.00022558,2]
[312587604,1706035831978,-164.0104164,0.00022566,2]
[312587605,1706035831988,-1963.97407622,0.00022566,2]
[312587606,1706035831999,-155.41027789,0.00022566,2]
[312587607,1706035832010,-2903.66792719,0.00022566,2]
[312587608,1706035832020,-463.85692038,0.00022567,2]
[312587609,1706035832031,-129422.64,0.00022568,2]
[312587610,1706035832041,-1216.6093,0.00022568,2]
[312587611,1706035832051,-1000.0,0.00022568,2]
[312587612,1706035832062,-162.84,0.00022649,2]
[312587613,1706035832073,-150.0,0.00022707,2]
[312587614,1706035832084,-162.84,0.00022774,2]
[312587615,1706035832094,-1000.0,0.000228,2]
[312587616,1706035832104,-1746.99150524,0.000228,2]
[312587617,1706035832114,-200.0,0.000228,8]
[312587618,1706035832125,-200.0,0.00022815,2]
[312587619,1706035832138,-200.0,0.00022816,2]
[312587620,1706035832148,-200.0,0.00022816,2]
[312587621,1706035832158,-200.0,0.00022816,2]
[312587622,1706035832167,-200.0,0.00022816,2]
[312587623,1706035832177,-800.0,0.00022816,2]
[312587624,1706035832188,-200.0,0.00022816,2]
[312587625,1706035832198,-150.0,0.00022855,2]
[312587626,1706035832208,-500.0,0.00022885,2]
[312587627,1706035832218,-500.0,0.00022885,2]
[312587628,1706035832228,-500.0,0.00022885,2]
[312587629,1706035832239,-500.0,0.00022885,2]
[312587630,1706035832249,-500.0,0.00022885,2]
[312587631,1706035832259,-500.0,0.00022885,2]
[312587632,1706035832269,-500.0,0.00022885,2]
[312587633,1706035832280,-500.0,0.00022885,2]
[312587634,1706035832289,-500.0,0.00022885,2]
[312587635,1706035832300,-500.0,0.00022885,2]
[312587636,1706035832310,-500.0,0.00022885,2]
[312587637,1706035832320,-500.0,0.00022885,2]
[312587638,1706035832330,-500.0,0.00022885,2]
[312587639,1706035832341,-500.0,0.00022885,2]
[312587640,1706035832351,-500.0,0.00022885,2]
[312587641,1706035832361,-500.0,0.00022885,2]
[312587642,1706035832371,-500.0,0.00022885,2]
[312587643,1706035832382,-500.0,0.00022885,2]
[312587644,1706035832396,-500.0,0.00022885,2]
[312587645,1706035832406,-500.0,0.00022885,2]
[312587646,1706035832416,-160.5712,0.00022885,2]
[312587647,1706035832427,-99043.5511,0.000229,2]
[312587648,1706035832437,-452.8908,0.000229,2]
[312587649,1706035832447,-209.0,0.000229,2]
[312587650,1706035832457,-6162.74846861,0.000229,2]
[312587664,1706035837659,-670.25606363,0.000229,2]
[312587665,1706035837668,-5403.50393637,0.000229,2]
[312587666,1706035837679,-950.67887639,0.000229,2]
[312587667,1706035837692,-765.28402551,0.000229,2]
[312587668,1706035837701,-158.08287741,0.000229,2]
[312587669,1706035837710,-500.0,0.000229,8]
[312587670,1706035837720,-822.47166221,0.00022952,2]
[312587671,1706035837731,-4177.52833779,0.00022952,2]
[312587672,1706035837741,-158.21575886,0.00022959,2]
[312587673,1706035837750,-197.10559229,0.0002299,2]
[312587674,1706035837760,-255.70975812,0.00022998,2]
[312587675,1706035837769,-528.25706111,0.00022998,2]
[312587676,1706035837778,-4284.33471294,0.00022998,2]
[312587677,1706035837787,-816.97688947,0.00022999,2]
[312587678,1706035837833,-149.00626594,0.00022999,2]
[312587679,1706035837857,-1684.49341846,0.00022999,2]
[312587680,1706035837867,-1343.0,0.00023,2]
[312587681,1706035837876,-12622.93581618,0.00023,2]
[312587743,1706035843219,-109834.84518979,0.00023,2]
[312587759,1706035843389,-254.90268735,0.00023,2]
[312587762,1706035843599,-4286.69198493,0.00023,2]
[312587763,1706035843610,-14746.34780139,0.00023,2]
[312587764,1706035843622,-842.97427121,0.00023,2]
[312587765,1706035843644,-1017.7897533,0.00023,2]
[312587766,1706035843705,-83668.28356823,0.00023,2]
[312587767,1706035843779,-420.46004682,0.00023,2]
[312587768,1706035843790,-653.58966857,0.00023,2]
[312587769,1706035843801,-2877.51590643,0.00023,2]
[312587770,1706035843832,-10502.06140005,0.00023,2]
[312587771,1706035843844,-393840.00000002,0.00023,2]
[312587780,1706035844018,-263.755,0.00023,2]
[312587788,1706035844088,-8319.26463397,0.00023,2]
[312587790,1706035844097,-1188.69881193,0.00023,2]
[312587792,1706035844106,-155.0,0.00023,2]
[312587794,1706035844115,-4.22702534,0.00023,20]
[312587796,1706035844125,-731.21602081,0.00023,2]
[312587798,1706035844134,-587.2284006,0.00023,2]
[312587800,1706035844143,-429.86320856,0.00023,2]
[312587803,1706035844166,-1570.13679144,0.00023,2]
[312587805,1706035844175,-640.222209,0.00023,2]
[312587807,1706035844184,-1263.0,0.00023004,2]
[312587809,1706035844193,-1528.1882118,0.00023004,2]
[312587811,1706035844202,-176.0615825,0.00023004,2]
[312587813,1706035844211,-37505.86020526,0.00023004,2]
[312587990,1706035845954,-2149.80023892,0.00023004,2]
[312587998,1706035846020,-362.57748259,0.00023004,2]
[312588770,1706035880206,8776.81094485,9e-05,2]
[312588771,1706035885434,1528.08387792,0.00018,2]
[312588772,1706035891242,625.12242202,0.0001,2]
[312588773,1706035894048,1645.60965805,0.0002,2]
[312588774,1706035912597,20082.2539089,6.94e-05,2]
[312588775,1706036093104,496.11,0.00019927,2]
[312588776,1706036163985,202.0,0.00020332,2]
[312588777,1706036297074,164.12944151,0.00020949,2]
[312588778,1706036542534,485.94,0.00019668,2]
[312588779,1706036572623,900.0,0.00021003,2]
[312588780,1706036853679,202.0,0.00020315,2]
[312588786,1706036997246,461.64,0.0001949,2]
[312588806,1706037033030,-242.72710862,0.00021047,2]
[312588807,1706037033040,-150.0,0.00021048,2]
[312588808,1706037033049,-13.72601895,0.00021048,2]
[312588809,1706037033061,-136.27398105,0.00021048,2]
[312588810,1706037033070,-268.33582393,0.00021049,2]
[312588811,1706037033201,-3206.07173468,0.00021049,2]
[312588829,1706037037718,-1525.59244139,0.00021049,2]
[312588830,1706037037727,-5000.0,0.00021049,2]
[312588831,1706037037735,-5000.0,0.00021049,2]
[312588832,1706037037744,-5000.0,0.00021049,2]
[312588833,1706037037754,-5000.0,0.00021049,2]
[312588834,1706037037763,-164.12944146,0.00021193,2]
[312588835,1706037037771,-2204.72,0.000214,2]
[312588836,1706037037780,-2000.0,0.00021411,2]